[Event "Austrian Bundesliga 2023-24"]
[Site "Austria"]
[Date "2024.03.20"]
[Round "7.19"]
[White "Kadric, Denis"]
[Black "Mamedyarov, Shakhriyar"]
[Result "0-1"]
[ECO "B13"]
[WhiteElo "2560"]
[BlackElo "2734"]
[Annotator "TA"]
[PlyCount "80"]
[EventDate "2023.10.21"]
[EventType "team-tourn"]
[EventCountry "AUT"]
[SourceTitle "playchess.com"]
[Source "ChessBase"]
[SourceQuality "1"]
[TimeControl "40/5400+30:1800+30"]

{[%evp 16,80,29,29,33,0,0,0,-10,-14,-7,-11,0,-4,0,0,0,0,-4,-22,-24,-62,-15,-23,-13,-41,-30,-21,-28,-90,-92,-71,-93,-82,-92,-104,-89,-83,-76,-77,-71,-64,-59,-64,-11,-60,-16,-124,-114,-151,-169,-137,-74,-90,-97,-126,-88,-233,-232,-251,-256,-310,-288,-300,-264,-964,-925]} 1. e4 {[%emt 0:00:03]} c6 {[%emt 0:00:13]} 2. d4 {[%emt 0:00:44]} d5 {[%emt 0:00:08]} 3. exd5 {[%emt 0:03:38]} cxd5 {[%emt 0:00:37]} 4. Bd3 {[%emt 0:00:01]} Nc6 {[%emt 0:00:23]} 5. c3 {[%emt 0:00:03]} Qc7 {[%emt 0:00:18]} 6. h3 {[%emt 0:00:26]} e6 {[%emt 0:01:23]} 7. Nf3 {[%emt 0:00:18]} Bd6 {[%emt 0:00:01]} 8. O-O {[%emt 0:00:20]} Nf6 {[%emt 0:03:39]} 9. Re1 {[%emt 0:00:58]} b6 {[%emt 0:00:26]} 10. b3 {[%emt 0:08:52]} Bb7 {[%emt 0:04:25]} 11. Ba3 {[%emt 0:00:56]} Bxa3 {[%emt 0:04:08] The position is equal.} 12. Nxa3 {[%emt 0:00:53]} O-O {[%emt 0:00:03]} 13. Rc1 {[%emt 0:01:19]} Rac8 {[%emt 0:01:28]} 14. Nb1 {[%emt 0:11:30]} Qd6 {[%emt 0:07:46]} 15. Qd2 {[%emt 0:21:44]} Rc7 {[%emt 0:01:47]} 16. Qg5 {[%emt 0:00:36]} Rfc8 {[%emt 0:09:10]} 17. Rcd1 {[%emt 0:00:52]} Ne7 {[%emt 0:02:47]} 18. Qh4 {[%emt 0:03:52]} h6 {[%emt 0:06:08]} (18... Nf5 $15 {was preferrable.} 19. Bxf5 exf5) 19. Ne5 $11 {[%emt 0:02:54]} Ne4 {[%emt 0:01:24]} 20. Qh5 {[%emt 0:18:47]} Nf5 {[%emt 0:01:11]} 21. Bxe4 {[%emt 0:06:49]} dxe4 {[%emt 0:00:07]} 22. Ng4 {[%emt 0:00:27]} (22. a4 $11) 22... b5 $17 {[%emt 0:04:40]} 23. Ne3 {[%emt 0:01:38]} Nxe3 {[%emt 0:01:59]} 24. fxe3 {[%emt 0:00:10]} Bd5 {[%emt 0:01:28]} 25. Rf1 {[%emt 0:03:46]} f5 {[%emt 0:05:01]} 26. Qe2 {[%emt 0:02:21] White is weak on the light squares} a6 {[%emt 0:00:51]} 27. Rc1 {[%emt 0:00:18]} g5 {[%emt 0:11:39]} 28. Rc2 {[%emt 0:01:22]} Kh7 {[%emt 0:04:13]} 29. Rfc1 {[%emt 0:01:33]} f4 {[%emt 0:00:11]} ({Better is} 29... e5 $1 $15) 30. Nd2 $11 {[%emt 0:00:42]} f3 {[%emt 0:00:49]} 31. gxf3 {[%emt 0:01:19]} (31. Qf2 $11) 31... exf3 $17 {[%emt 0:00:08]} 32. Qd3+ {[%emt 0:01:36]} Kh8 {[%emt 0:07:09] Dancing on a razor blade.} 33. Nf1 {[%emt 0:00:01] Repels Qg3+} e5 {[%emt 0:00:12] Black is much more active.} (33... g4 $142 34. e4 Bb7) 34. e4 {[%emt 0:01:31] [#]} Be6 $36 {[%emt 0:00:48][%mdl 2048] Black is really pushing.} 35. d5 {[%emt 0:01:39]} Rf8 {[%emt 0:01:35] Threatens to win with ...Rcf7.} (35... Bxh3 $6 36. Qxf3 g4 37. Qe3 $11) 36. Rf2 {[%emt 0:01:03] Now White is beyond hope.} (36. Rh2 $17) 36... Rcf7 $19 {[%emt 0:00:37]} (36... Bxh3 37. Rxf3 g4 38. Rxf8+ Qxf8 39. Qg3 $11) 37. c4 {[%emt 0:00:49]} Bxh3 {[%emt 0:00:19]} (37... bxc4 38. Rxc4 Bd7 (38... Bxh3 39. Rc6 $11) 39. Ng3 $17) 38. cxb5 {[%emt 0:00:57]} Qd7 {[%emt 0:05:44]} 39. Ne3 {[%emt 0:00:03] [#] Prevents Qg4+.} (39. bxa6 Qg4+ 40. Kh2 Bg2 (40... Qf4+ $2 41. Ng3 $19) 41. Kg1 Qh3 42. Nh2 g4 43. Qc2 g3 44. Rxg2 f2+ (44... fxg2 $2 45. Qxg2 gxh2+ 46. Kh1 $19) 45. Kf1 gxh2 46. Ke2 f1=Q+ (46... Qxg2 47. Kd3 Rf3+ 48. Kc4 f1=Q+ 49. Kb4 Qxa6 50. Qc7 Qd2+ 51. Rc3 Qxc3+ 52. Qxc3 Rb8+ 53. Kc5 Rxc3#) 47. Rxf1 Rxf1 (47... Qxg2+ 48. Kd3 Qxf1+ 49. Kd2 Qf2+ 50. Kc1 Qd4 51. Qg2 Rc8+ 52. Kb1 Qd1+ 53. Kb2 Qc1#) (47... Qxg2+ 48. Kd3 Qxf1+ 49. Kc3 Rc7+ 50. Kb2 Rxc2+ 51. Kxc2)) 39... Rf4 $1 {[%emt 0:01:47]} (39... Qxb5 40. Qc3 $17 (40. Qxb5 axb5 41. Kh2 Bd7 $19)) (39... axb5 40. Rc6 $17) 40. Kh2 $2 {[%emt 0:00:00]} ({Much worse is} 40. bxa6 Rg4+ 41. Kh2 (41. Nxg4 Qxg4+ 42. Kh2 Bg2 43. Kg1 Qh3) 41... Rh4 $19) (40. b6 Rg4+ 41. Kh1 (41. Nxg4 Qxg4+ 42. Kh1 Bg2+ 43. Kg1 Qh3)) 40... Rh4 {[%emt 0:00:00] Weighted Error Value: White=0.37/Black=0.09 (flawless) .  Mistake:       	White=4     	Black=3      Inaccurate:     	White=3     	Black=2      OK:         	White=11    	Black=12     Best:        	White=4     	Black=2      Strong:       	---       	Black=1} (40... Qxb5 41. Qxb5 Rh4 42. Rxf3 (42. Qxa6 $2 {is a self mate.} Bg2+ 43. Kg3 Rh3+ 44. Kg4 Rf4#) 42... Bg4+ 43. Kg1 $11) 0-1

[Event "Austrian Bundesliga 2023-24"]
[Site "Austria"]
[Date "2024.03.20"]
[Round "7.20"]
[White "Vachier-Lagrave, Maxime"]
[Black "Erdos, Viktor"]
[Result "1-0"]
[ECO "C82"]
[WhiteElo "2728"]
[BlackElo "2552"]
[Annotator "TA"]
[PlyCount "113"]
[EventDate "2023.10.21"]
[EventType "team-tourn"]
[EventCountry "AUT"]
[SourceTitle "playchess.com"]
[Source "ChessBase"]
[SourceQuality "1"]
[TimeControl "40/5400+30:1800+30"]

{[%evp 26,113,54,44,41,41,48,47,52,43,45,34,39,16,73,71,70,0,0,0,0,0,0,0,0,0,0,0,14,24,23,0,3,1,4,0,0,0,18,18,18,18,18,18,10,0,4,0,18,15,17,22,119,119,125,125,125,125,125,126,125,125,135,135,135,117,116,122,116,116,200,200,200,200,200,200,202,118,122,137,200,200,302,268,1354,1354,1332,1212,10845,7005]} 1. e4 {[%emt 0:00:03]} e5 {[%emt 0:00:06]} 2. Nf3 {[%emt 0:00:03]} Nc6 {[%emt 0:00:07]} 3. Bb5 {[%emt 0:00:02]} a6 {[%emt 0:00:07]} 4. Ba4 {[%emt 0:00:02]} Nf6 {[%emt 0:00:06]} 5. O-O {[%emt 0:00:04]} Nxe4 {[%emt 0:00:05]} 6. d4 {[%emt 0:00:04]} b5 {[%emt 0:00:05]} 7. Bb3 {[%emt 0:00:04]} d5 {[%emt 0:00:05]} 8. dxe5 {[%emt 0:00:08]} Be6 {[%emt 0:00:06]} 9. c3 {[%emt 0:00:13]} Bc5 {[%emt 0:00:20]} 10. Nbd2 {[%emt 0:00:32]} O-O {[%emt 0:00:28]} 11. Bc2 {[%emt 0:00:18]} Bf5 {[%emt 0:01:00]} 12. Nb3 {[%emt 0:01:24]} Bg6 {[%emt 0:00:50]} 13. Nfd4 {[%emt 0:07:54]} Bxd4 {[%emt 0:01:52]} 14. Nxd4 {[%emt 0:00:55]} Nxd4 {[%emt 0:01:41]} (14... Nxe5 $2 {perishes.} 15. f4 $16) 15. cxd4 {[%emt 0:01:34][%cal Bc3d4,Bd4c5][%mdl 32]} c5 {[%emt 0:00:09]} 16. Bxe4 {[%emt 0:12:37]} Bxe4 {[%emt 0:06:53] White is slightly better.} 17. dxc5 {[%emt 0:02:05]} d4 {[%emt 0:02:58]} 18. Qb3 {[%emt 0:00:56]} Qc7 {[%emt 0:53:00]} 19. Re1 {[%emt 0:02:35]} Bg6 {[%emt 0:01:06]} (19... Qc6 $11) 20. Bd2 $16 {[%emt 0:01:32]} Rfe8 {[%emt 0:01:39]} (20... Qxc5 21. Bb4 Qc2 22. Bxf8 Qxb3 23. axb3 $11) 21. e6 {[%emt 0:12:43]} ({White should try} 21. Rac1 $14) 21... Qxc5 $11 {[%emt 0:10:22]} 22. Rac1 {[%emt 0:00:18]} (22. Bb4 {simplifies} Qc4 23. Rad1 Qxb3 24. axb3 a5 25. exf7+ Kxf7 26. Rxe8 Kxe8 27. Be1) 22... Qf5 {[%emt 0:00:08][%cal Re8e6]} 23. e7 {[%emt 0:00:54]} Qd7 {[%emt 0:00:19] Repels Rc7} 24. Qf3 {[%emt 0:03:05][%cal Oc1c7]} f6 {[%emt 0:06:16]} 25. h4 {[%emt 0:03:12]} h5 {[%emt 0:03:51]} 26. Qg3 {[%emt 0:00:12]} Kh7 {[%emt 0:01:29] Black is weak on the dark squares} 27. Rc7 {[%emt 0:00:40] Against Ra7} Qd5 {[%emt 0:00:19]} 28. Qf4 {[%emt 0:04:29]} d3 {[%emt 0:03:25]} 29. a3 {[%emt 0:01:01]} Rac8 {[%emt 0:01:39]} 30. Rec1 {[%emt 0:01:22]} Rxc7 {[%emt 0:00:27]} 31. Rxc7 {[%emt 0:00:05]} Qe6 {[%emt 0:01:18]} 32. Qe3 {[%emt 0:03:17]} Qg4 {[%emt 0:00:10]} 33. Ra7 {[%emt 0:00:49]} Qd1+ {[%emt 0:02:28]} 34. Kh2 {[%emt 0:00:16][%cal Of2f3]} Qe2 {[%emt 0:00:54]} 35. Kg1 {[%emt 0:03:37]} (35. Rxa6 Rxe7 36. Qxe2 Rxe2 $17) 35... Qd1+ {[%emt 0:00:09]} 36. Kh2 {[%emt 0:02:15][%cal Of2f3]} Qe2 {[%emt 0:00:05]} 37. Bb4 {[%emt 0:00:06]} ({Much weaker is} 37. Rxa6 Rxe7 38. Qxe2 Rxe2 $17) 37... Qxb2 {[%emt 0:01:54]} 38. Rxa6 {[%emt 0:00:16]} Qe2 {[%emt 0:00:23]} (38... Qc2 $1 $11) 39. Qxe2 $16 {[%emt 0:02:46]} dxe2 {[%emt 0:00:02][%mdl 4096] Endgame. KRB-KRB} 40. Re6 {[%emt 0:00:08]} Bd3 {[%emt 0:00:00]} 41. Kg3 {[%emt 0:01:00]} Kg6 {[%emt 0:02:07]} 42. Re3 {[%emt 0:00:53]} Bc4 {[%emt 0:00:06]} 43. f3 $1 {[%emt 0:00:06]} Kf7 {[%emt 0:01:02]} 44. Kf2 {[%emt 0:00:19]} Rc8 {[%emt 0:14:22]} 45. Re4 $1 {[%emt 0:01:10]} Ke8 {[%emt 0:07:47]} 46. Rd4 {[%emt 0:00:31]} Be6 {[%emt 0:05:41]} 47. Kxe2 {[%emt 0:00:10]} Bd7 {[%emt 0:00:07] [#]} (47... Bc4+ $16 48. Kd2 Be6) 48. Rd5 $1 $18 {[%emt 0:02:11]} g6 {[%emt 0:00:08]} 49. Ke3 {[%emt 0:00:11]} Rc4 {[%emt 0:00:44]} 50. g3 {[%emt 0:01:26]} Rc1 {[%emt 0:01:40]} 51. Rd6 {[%emt 0:01:26]} (51. g4 $18 hxg4 52. fxg4) 51... Rc6 $16 {[%emt 0:00:08]} 52. Rd4 {[%emt 0:00:07] White is more active.} Rc2 {[%emt 0:01:19] [#]} (52... Re6+ $16 {is a better defense.} 53. Kd2 Re5) 53. g4 $1 $18 {[%emt 0:02:52]} hxg4 {[%emt 0:01:32]} (53... Rc7 $142 54. gxh5 gxh5) 54. fxg4 {[%emt 0:00:44]} Rh2 $2 {[%emt 0:00:54]} (54... Rc1 55. h5 gxh5) 55. Rd6 {[%emt 0:00:38] White is clearly winning.} Rh3+ {[%emt 0:01:12]} 56. Kf2 {[%emt 0:00:04]} Rh2+ {[%emt 0:00:47]} 57. Kg3 {[%emt 0:00:08] Weighted Error Value: White=0.06 (flawless) /Black=0.14 (very precise) .  Mistake:       	White=2     	Black=6      OK:         	White=20    	Black=16     Best:        	White=3     	Black=4      Strong:       	White=3     	---} 1-0

[Event "Austrian Bundesliga 2023-24"]
[Site "Austria"]
[Date "2024.03.20"]
[Round "7.21"]
[White "Ivanisevic, Ivan"]
[Black "Vitiugov, Nikita"]
[Result "1-0"]
[ECO "E32"]
[WhiteElo "2523"]
[BlackElo "2688"]
[Annotator "TA"]
[PlyCount "63"]
[EventDate "2023.10.21"]
[EventType "team-tourn"]
[EventCountry "AUT"]
[SourceTitle "playchess.com"]
[Source "ChessBase"]
[SourceQuality "1"]
[TimeControl "40/5400+30:1800+30"]

{[%evp 16,63,0,0,0,0,0,0,0,0,0,0,52,16,80,89,88,85,123,68,107,110,118,129,107,121,97,22,91,100,95,82,79,79,100,90,97,65,64,56,66,43,100,57,125,116,245,251,350,350]} 1. d4 {[%emt 0:00:03]} Nf6 {[%emt 0:00:09]} 2. c4 {[%emt 0:00:06]} e6 {[%emt 0:00:12]} 3. Nc3 {[%emt 0:00:06]} Bb4 {[%emt 0:00:09]} 4. Qc2 {[%emt 0:00:07]} O-O {[%emt 0:01:01]} 5. Bg5 {[%emt 0:01:06]} c5 {[%emt 0:05:19]} 6. e3 {[%emt 0:01:25][%cal Be2e3,Be3d4,Bd4d5][%mdl 32]} h6 {[%emt 0:04:44]} 7. Bh4 {[%emt 0:00:10]} cxd4 {[%emt 0:04:01]} 8. exd4 {[%emt 0:00:06]} Nc6 {[%emt 0:00:32]} 9. Nf3 {[%emt 0:00:36]} b6 {[%emt 0:05:49]} 10. Rd1 {[%emt 0:12:18]} Bb7 {[%emt 0:01:50]} 11. Be2 {[%emt 0:00:44]} Rc8 {[%emt 0:01:44] The position is equal.} 12. O-O {[%emt 0:02:17]} Na5 {[%emt 0:03:35]} 13. d5 {[%emt 0:15:04]} Nxc4 {[%emt 0:14:40]} (13... Bxc3 $1 $11 14. Qxc3 exd5) 14. Qb3 $1 $14 {[%emt 0:10:32][%csl LRb4,LRc4]} (14. dxe6 fxe6 15. Qb3 Bxc3 16. Bxc4 Qc7 $15) 14... Nxb2 {[%emt 0:08:08]} 15. Qxb4 $16 {[%emt 0:04:57]} Nxd1 {[%emt 0:00:08]} 16. Rxd1 {[%emt 0:00:59]} exd5 {[%emt 0:02:19]} 17. Nd4 {[%emt 0:03:25] White has more active pieces.} ({White should try} 17. Bf1 $16) 17... Re8 {[%emt 0:01:14]} 18. h3 {[%emt 0:03:30][%mdl 1024] White has strong compensation.} Qc7 {[%emt 0:07:15]} 19. Ncb5 {[%emt 0:10:17][%csl LRa7,LRc7] Excellent horsemanship.} Qc5 {[%emt 0:00:26]} 20. Qb2 {[%emt 0:01:07][%cal Oh4f6] [#] aiming for Bxf6!} Ne4 {[%emt 0:05:14]} 21. Bg4 {[%emt 0:03:21]} (21. Nxa7 $16 Nc3 22. Nxc8 Nxd1 23. Bxd1 Bxc8 24. Bc2) 21... Nc3 {[%emt 0:06:27]} (21... g5 $11 {keeps the balance.}) 22. Nxc3 {[%emt 0:03:08]} Qxc3 {[%emt 0:00:32]} 23. Qxc3 {[%emt 0:03:54]} Rxc3 {[%emt 0:00:24]} 24. Nb5 {[%emt 0:02:30]} Rc2 {[%emt 0:07:39]} 25. Nd6 $36 {[%emt 0:01:23][%mdl 2048] White is really pushing.} Rb8 {[%emt 0:00:08]} 26. Bg3 {[%emt 0:04:21]} Ba6 {[%emt 0:05:30]} 27. Rxd5 {[%emt 0:01:36][%cal Od6f7] Strongly threatening Nxf7!} ({Of course not} 27. Bxd7 Rd8 28. Ba4 (28. Be8 Kf8 $11) 28... Rxa2 $11) 27... Rd8 {[%emt 0:01:18]} 28. Re5 {[%emt 0:03:40]} Kf8 {[%emt 0:01:42]} (28... Rc1+ $14 29. Kh2 Bc4) 29. a4 {[%emt 0:02:17]} Rd2 {[%emt 0:03:03]} (29... Bc4 $14) 30. Re1 {[%emt 0:00:38]} Rd4 {[%emt 0:00:59]} (30... Bd3 $16) 31. Nf5 $18 {[%emt 0:01:38]} Rxa4 {[%emt 0:01:09] [#]} 32. Bc7 $1 {[%emt 0:00:35] Weighted Error Value: White=0.12 (very precise) /Black=0.32.  Mistake:       	White=2     	Black=6      Inaccurate:     	White=2     	Black=3      OK:         	White=6     	Black=8      Best:        	White=4     	Black=1      Strong:       	White=2     	---} 1-0

[Event "Austrian Bundesliga 2023-24"]
[Site "Austria"]
[Date "2024.03.20"]
[Round "7.22"]
[White "Maghsoodloo, Parham"]
[Black "Perunovic, Milos"]
[Result "1-0"]
[ECO "D02"]
[WhiteElo "2717"]
[BlackElo "2535"]
[Annotator "TA"]
[PlyCount "39"]
[EventDate "2023.10.21"]
[EventType "team-tourn"]
[EventCountry "AUT"]
[SourceTitle "playchess.com"]
[Source "ChessBase"]
[SourceQuality "1"]
[TimeControl "40/5400+30:1800+30"]

{[%evp 13,39,10,8,0,6,0,0,-11,8,8,60,61,64,66,211,204,210,225,211,202,264,281,476,483,920,895,858,891]} 1. d4 {[%emt 0:00:06]} d5 {[%emt 0:01:14]} 2. Nf3 {[%emt 0:01:10]} Nf6 {[%emt 0:00:44]} 3. g3 {[%emt 0:06:48]} c5 {[%emt 0:05:48]} 4. Bg2 {[%emt 0:00:07]} cxd4 {[%emt 0:00:49]} 5. O-O {[%emt 0:00:07]} e6 {[%emt 0:08:15][%cal Be7e6,Be6e5][%mdl 32]} 6. Nxd4 {[%emt 0:03:04]} e5 {[%emt 0:02:52]} 7. Nb3 {[%emt 0:00:55]} Be6 {[%emt 0:02:08]} 8. Bg5 {[%emt 0:07:24]} Nbd7 {[%emt 0:01:02]} 9. f4 {[%emt 0:05:05] And now f5 would win.} exf4 {[%emt 0:04:48]} 10. gxf4 {[%emt 0:02:14][%cal Bg3f4,Bf4f5,Bf5f6][%mdl 32] Strongly threatening f5. The position is equal.} g6 {[%emt 0:11:06]} 11. Nc3 {[%emt 0:02:43][%cal Rc3d5]} Be7 {[%emt 0:01:12]} (11... Qb6+ $1 $11 12. Kh1 Bg7) 12. Nd4 $14 {[%emt 0:04:00]} Rc8 {[%emt 0:29:00]} 13. Kh1 $36 {[%emt 0:07:04][%mdl 2048] White fights for an advantage. White is more active.} Nc5 {[%emt 0:08:18]} ({Black should play} 13... h6 $14 14. Bxf6 Nxf6) 14. f5 $18 {[%emt 0:02:52]} Bd7 {[%emt 0:06:24]} 15. Bxf6 {[%emt 0:01:07]} (15. Bxd5 $2 {perishes.} Nxd5 16. Nxd5 Bxg5 $19) 15... Bxf6 {[%emt 0:00:08]} 16. Nxd5 {[%emt 0:00:07] A dynamic duo of knights.} ({Not} 16. Bxd5 O-O $11) 16... Be5 {[%emt 0:01:08] [#]} 17. Qd2 $1 {[%emt 0:02:57] Black must now prevent Qe3.} O-O $2 {[%emt 0:07:26]} (17... Bc6) 18. f6 {[%emt 0:01:22][%cal Od2h6] Qh6! is the strong threat. White is clearly winning.} Kh8 {[%emt 0:00:22] [#]} (18... Bh3 $142) 19. Qh6 $1 {[%emt 0:00:18]} Rg8 {[%emt 0:00:06] [#] Inhibits Qg7+.} 20. Nf3 $1 {[%emt 0:00:09] Black did not feel at home in the position after the opening.   Weighted Error Value: White=0.01 (flawless) /Black=0.59.  Mistake:       	---       	Black=4      Inaccurate:     	---       	Black=1      OK:         	White=3     	Black=3      Best:        	White=5     	---        Strong:       	White=1     	---} 1-0

[Event "Austrian Bundesliga 2023-24"]
[Site "Austria"]
[Date "2024.03.20"]
[Round "7.23"]
[White "Ftacnik, Lubomir"]
[Black "Vallejo Pons, Francisco"]
[Result "0-1"]
[ECO "D37"]
[WhiteElo "2453"]
[BlackElo "2653"]
[Annotator "TA"]
[PlyCount "126"]
[EventDate "2023.10.21"]
[EventType "team-tourn"]
[EventCountry "AUT"]
[SourceTitle "playchess.com"]
[Source "ChessBase"]
[SourceQuality "1"]
[TimeControl "40/5400+30:1800+30"]

{[%evp 53,126,-46,-46,-45,-47,-53,-51,-44,-38,-45,-47,-64,-61,-75,-84,-85,-78,-83,-87,-85,-80,-131,-98,-105,-101,-98,-94,-108,-89,-93,-103,-127,-139,-147,-113,-161,-157,-233,-222,-227,-226,-233,-204,-298,-309,-358,-350,-379,-365,-541,-542,-528,-521,-499,-323,-337,-330,-319,-308,-352,-336,-416,-364,-422,-422,-663,-662,-29972,-29975,-12846,-847,-536,-521,-29973,-29972]} 1. d4 {[%emt 0:00:04]} Nf6 {[%emt 0:01:06]} 2. Nf3 {[%emt 0:00:10]} d5 {[%emt 0:00:39]} 3. c4 {[%emt 0:00:10]} e6 {[%emt 0:00:03]} 4. Nc3 {[%emt 0:00:16]} dxc4 {[%emt 0:00:06]} 5. e3 {[%emt 0:00:28]} a6 {[%emt 0:00:22]} 6. a4 {[%emt 0:00:09]} b6 {[%emt 0:00:16] D24: Queen's Gambit Accepted: 3 Nf3 Nf6 4 Nc3.} 7. Bxc4 {[%emt 0:00:14]} Bb7 {[%emt 0:00:06]} 8. O-O {[%emt 0:00:34]} Bb4 {[%emt 0:00:32]} 9. Qe2 {[%emt 0:00:30]} O-O {[%emt 0:00:52]} 10. Rd1 {[%emt 0:00:21]} Qe7 {[%emt 0:02:06]} 11. Bd3 {[%emt 0:02:54]} Nbd7 {[%emt 0:01:13]} 12. e4 {[%emt 0:05:05]} e5 {[%emt 0:00:14]} 13. Bg5 {[%emt 0:06:32]} exd4 {[%emt 0:25:38]} 14. Nd5 {[%emt 0:09:44]} Bxd5 {[%emt 0:05:53]} 15. exd5 {[%emt 0:00:04]} h6 $146 {[%emt 0:13:31]} ({Predecessor:} 15... Qxe2 16. Bxe2 h6 17. Bxf6 Nxf6 18. Nxd4 g6 19. Bf3 Bd6 20. Nc6 Rfe8 21. Re1 g5 {0-1 Cyfka,K (2409)-Shuvalova,P (2509) FIDE Grand Swiss (Women) 2021 (1)}) 16. Bh4 {[%emt 0:10:12]} Qxe2 {[%emt 0:08:59]} 17. Bxe2 {[%emt 0:00:03]} Rfe8 {[%emt 0:00:06]} 18. Nxd4 {[%emt 0:04:49]} Bc5 {[%emt 0:02:43]} 19. Bxf6 {[%emt 0:26:49]} Nxf6 {[%emt 0:01:35]} 20. Bf3 {[%emt 0:00:12]} Ne4 {[%emt 0:04:37]} 21. Kf1 {[%emt 0:03:53]} Ng5 {[%emt 0:07:01]} 22. Be2 {[%emt 0:04:19]} Re4 {[%emt 0:02:28]} 23. Nc6 {[%emt 0:03:25]} Rh4 {[%emt 0:05:39]} 24. b4 {[%emt 0:01:41]} Rxh2 {[%emt 0:02:32]} 25. Kg1 {[%emt 0:00:17]} Bd6 {[%emt 0:00:21]} 26. Ne7+ {[%emt 0:04:17]} Bxe7 {[%emt 0:01:10]} 27. Kxh2 {[%emt 0:00:03]} Bxb4 {[%emt 0:00:31]} 28. Bd3 {[%emt 0:05:53]} g6 {[%emt 0:02:56]} 29. Rac1 {[%emt 0:07:08]} Nh7 {[%emt 0:01:47]} 30. g3 {[%emt 0:00:57]} (30. Rxc7 Bd6+ 31. g3 Bxc7 $19) 30... Bd6 {[%emt 0:00:57]} 31. Kg2 {[%emt 0:02:09]} Nf6 {[%emt 0:00:22]} 32. Bc4 {[%emt 0:01:22]} Ne4 {[%emt 0:02:27]} 33. Re1 {[%emt 0:00:15]} Nc5 {[%emt 0:00:42]} 34. Ra1 {[%emt 0:00:15]} Kg7 {[%emt 0:01:05]} 35. Ra2 {[%emt 0:00:43]} Rb8 {[%emt 0:00:53]} 36. Rb1 {[%emt 0:00:46]} Re8 {[%emt 0:00:58]} 37. Kf3 {[%emt 0:01:15]} (37. Re2 $142 Ra8 38. Bb3) 37... h5 {[%emt 0:02:19]} 38. Raa1 {[%emt 0:00:51]} Kf6 {[%emt 0:02:03]} 39. Re1 {[%emt 0:00:03]} Rb8 {[%emt 0:00:40]} 40. Reb1 {[%emt 0:00:00]} Rh8 {[%emt 0:00:00]} 41. Re1 {[%emt 0:04:55]} Kg7 {[%emt 0:04:27]} 42. Ra2 {[%emt 0:02:09]} f5 {[%emt 0:02:15]} 43. Rc1 {[%emt 0:05:32]} g5 {[%emt 0:04:08]} 44. Bf1 {[%emt 0:04:14]} (44. Kg2 $17 {keeps fighting.}) 44... Kf6 {[%emt 0:06:48]} 45. Rxc5 {[%emt 0:00:33]} (45. Bc4 $17 {was forced.}) 45... Bxc5 {[%emt 0:01:24]} (45... bxc5 46. Bxa6 g4+ 47. Kg2 $17) 46. Bxa6 {[%emt 0:00:07]} h4 {[%emt 0:01:41]} 47. Kg2 {[%emt 0:05:37]} g4 {[%emt 0:06:43]} 48. gxh4 {[%emt 0:04:34]} (48. Bb5 {might work better.}) 48... Rxh4 $19 {[%emt 0:00:42]} 49. Re2 {[%emt 0:02:16]} Rh3 {[%emt 0:04:14]} 50. Bc8 {[%emt 0:02:49]} Rd3 {[%emt 0:00:41]} 51. Re6+ {[%emt 0:00:43]} (51. a5 $142 bxa5 52. Rc2) 51... Kg5 $19 {[%emt 0:00:06]} 52. Re5 {[%emt 0:00:17]} Rf3 {[%emt 0:00:07]} 53. Re2 {[%emt 0:00:21]} Bd4 {[%emt 0:01:08]} 54. Rd2 {[%emt 0:00:14]} Be5 {[%emt 0:01:23]} 55. Re2 {[%emt 0:00:13]} Kf6 {[%emt 0:00:46]} 56. Ra2 {[%emt 0:02:35]} Rd3 {[%emt 0:00:35]} 57. a5 {[%emt 0:00:10]} bxa5 {[%emt 0:00:23]} (57... Rxd5 $2 {is the wrong capture.} 58. a6 Rd8 59. Bb7 $18) 58. Rxa5 {[%emt 0:00:02]} Rd2 {[%emt 0:00:17]} 59. Kf1 {[%emt 0:01:59]} (59. d6 $142 cxd6 60. Kf1) 59... Bd4 $19 {[%emt 0:01:04]} 60. d6 {[%emt 0:00:23]} Rxf2+ {[%emt 0:00:35]} ({Worse is} 60... cxd6 61. Rxf5+ Ke7 62. Rf4 $11) 61. Ke1 {[%emt 0:00:02]} cxd6 {[%emt 0:01:17]} (61... g3 $142 62. Ra3 g2 (62... cxd6 63. Rxg3 Rh2 64. Rg8 $19)) 62. Rd5 $19 {[%emt 0:00:08]} Rf4 {[%emt 0:02:13]} 63. Bxf5 {[%emt 0:00:31]} Bc3+ {[%emt 0:00:15]} 0-1